[Event "Fagernes Chess Open 2025"]
[Site "Fagernes"]
[Date "2025.04.16"]
[Round "4.19"]
[White "Holten, Terje"]
[Black "Johansson, Henrik"]
[Result "1-0"]
[Annotator "NA RC"]
[ECO "E61"]
[WhiteElo "1566"]
[BlackElo "1730"]
[PlyCount "70"]
[EventDate "2025.04.12"]
[EventCountry "NOR"]
[SourceTitle "playchess.com"]
[Source "ChessBase"]
[SourceQuality "1"]
[TimeControl "40/6000+30:2400+30"]

1. d4 {[%emt 0:00:03]} g6 {[%emt 0:01:03]} 2. c4 {[%emt 0:00:32]} Bg7 {[%emt 0:00:30]} 3. Nf3 {[%emt 0:00:56]} c5 {[%emt 0:02:43]} 4. e3 {[%emt 0:01:37]} Nf6 {[%emt 0:03:42]} 5. Be2 {[%emt 0:03:03]} O-O {[%emt 0:03:38]} 6. O-O {[%emt 0:00:37]} d6 {[%emt 0:11:09]} 7. Nc3 {[%emt 0:02:04]} a6 {[%emt 0:02:31]} 8. Bd2 {[%emt 0:03:39]} Nc6 {[%emt 0:06:34]} 9. h3 {[%emt 0:03:54]} Bd7 {[%emt 0:01:43]} 10. a3 {[%emt 0:04:05]} Rc8 {[%emt 0:04:11]} 11. d5 {[%emt 0:03:15]} Na7 {[%emt 0:02:03]} 12. e4 {[%emt 0:02:08]} b5 {[%emt 0:05:04]} 13. Re1 {[%emt 0:02:45]} Qb6 {[%emt 0:08:15]} 14. Qc2 {[%emt 0:04:27]} bxc4 {[%emt 0:04:40]} 15. Bxc4 {[%emt 0:00:35]} Nb5 {[%emt 0:02:31]} 16. Na4 {[%emt 0:06:44]} Qd8 {[%emt 0:04:09]} 17. Rab1 {[%emt 0:01:21]} Nd4 {[%emt 0:03:56]} 18. Nxd4 {[%emt 0:02:18]} cxd4 {[%emt 0:00:05]} 19. b3 {[%emt 0:00:32]} Nxe4 {[%emt 0:03:48]} 20. Qxe4 {[%emt 0:03:54]} Bxa4 {[%emt 0:01:10]} 21. Bxa6 {[%emt 0:02:05]} Ra8 {[%emt 0:04:18]} 22. Bb7 {[%emt 0:08:01]} Ra7 {[%emt 0:02:36]} 23. bxa4 {[%emt 0:00:43]} Rxa4 {[%emt 0:01:21]} 24. Bb4 {[%emt 0:02:36]} Qc7 {[%emt 0:05:12]} 25. Bc6 {[%emt 0:01:28]} Ra7 {[%emt 0:02:03]} 26. Qf3 {[%emt 0:05:22]} Rb8 {[%emt 0:02:49]} 27. h4 {[%emt 0:04:43]} Rb6 {[%emt 0:04:34]} 28. h5 {[%emt 0:01:40]} Qb8 {[%emt 0:01:46]} 29. hxg6 {[%emt 0:01:02]} hxg6 {[%emt 0:02:19]} 30. g3 {[%emt 0:04:25]} Rc7 {[%emt 0:04:15]} 31. Rbd1 {[%emt 0:02:59]} Qa7 {[%emt 0:05:44]} 32. Kg2 {[%emt 0:01:16]} Rc8 {[%emt 0:03:27]} 33. Qg4 {[%emt 0:01:43]} Rbxc6 {[%emt 0:02:35]} 34. dxc6 {[%emt 0:00:21]} Rxc6 {[%emt 0:00:33]} 35. Qe4 {[%emt 0:04:00]} Rc7 {[%emt 0:00:00]} 1-0